Workbook

Sheet 2月份-4月份
A1: 新通河3301船2019年2月-4月份油耗记录
A3: 一. 2019年2月份存油情况
A4: 序号 | B4: 列表 | D4: 刻度/cm | E4: 每公分/kg | F4: 存油/KG
A5: 1 | B5: 船上大油柜油尺刻度 | D5: 14 | E5: 144.14 | F5: =D5*E5 -> 2017.96
A6: 2 | B6: 左日用油柜油尺刻度 | D6: 56 | E6: 12.55 | F6: =D6*E6 -> 702.8
A7: 3 | B7: 左日用油柜油尺刻度 | D7: 56 | E7: 12.55 | F7: 702.8
A8: 4 | B8: 2-4月加油情况19.95吨 | F8: 19950
A9: 5 | E9: 总存油： | F9: =SUM(F5:F8) -> 23373.56
A11: 二. 2019年4月份存油情况
A12: 序号 | B12: 列表 | D12: 刻度/cm | E12: 每公分/kg | F12: 存油/KG
A13: 1 | B13: 船上大油柜油尺刻度 | D13: 67 | E13: 144.14 | F13: =D13*E13 -> 9657.38
A14: 2 | B14: 左日用油柜油尺刻度 | D14: 40 | E14: 12.55 | F14: =D14*E14 -> 502
A15: 3 | B15: 右日用油柜油尺刻度 | D15: 40 | E15: 12.55 | F15: 502
A16: 4 | E16: 总存油： | F16: =SUM(F13:F15) -> 10661.38
A19: 三.2019年2月1日--4月31日共跑13个航次
A20: 序号 | B20: 装货点 | C20: 卸货点 | D20: 下一港 | E20: 总海里数 | F20: 油耗/KG
A21: 1 | B21: 双水-高栏国码 | C21: 亚太 | D21: 高栏国码 | E21: 100 | F21: =E21/5.8*73 -> 1258.62069 | H21: 高栏国码 | I21: 亚太 | K21: 新通河3301 | L21: 2500 | M21: 02月09日20:00
A22: 2 | B22: 高栏国码 | C22: 亚太 | D22: 高栏国码 | E22: 60 | F22: =E22/5.8*73 -> 755.1724138 | H22: 高栏国码 | I22: 亚太 | K22: 新通河3301 | L22: 2500 | M22: 02月16日23:45
A23: 3 | B23: 高栏国码 | C23: 高宝隆 | D23: 高栏国码 | E23: 80 | F23: =E23/5.8*73 -> 1006.896552 | H23: 高栏国码 | I23: 高宝隆 | K23: 新通河3301 | L23: 2500 | M23: 02月13日13:15
A24: 4 | B24: 高栏国码 | C24: 双水码头 | D24: 高栏国码 | E24: 80 | F24: 1006.896552 | H24: 高栏国码 | I24: 双水码头 | K24: 新通河3301 | L24: 2536 | M24: 02月20日10:30
A25: 5 | B25: 高栏国码 | C25: 广裕码头 | D25: 黄埔新港 | E25: 118 | F25: 1485.172414 | H25: 高栏国码 | I25: 广裕码头 | K25: 新通河3301 | L25: 2336 | M25: 02月23日20:30
A26: 6 | B26: 黄埔新港 | C26: 南沙粮食码头 | D26: 高栏国码 | E26: 133 | F26: 1673.965517 | H26: 黄埔新港 | I26: 南沙粮食码头 | J26: 巨富 | K26: 新通河3301 | L26: 2600 | M26: 03月01日07:30
A27: 7 | B27: 高栏国码 | C27: 亚太 | D27: 高栏国码 | E27: 60 | F27: 755.1724138 | H27: 高栏国码 | I27: 亚太 | K27: 新通河3301 | L27: 2000 | M27: 03月15日18:45
A28: 8 | B28: 高栏国码 | C28: 双水&高宝隆 | D28: 高栏国码 | E28: 84 | F28: 1057.241379 | H28: 高栏国码 | I28: 双水&高宝隆 | K28: 新通河3301 | L28: 2400 | M28: 03月21日13:30
A29: 9 | B29: 高栏国码 | C29: 双水码头-源标船厂 | D29: 高栏国码 | E29: 120 | F29: 1510.344828 | H29: 高栏国码 | I29: 双水码头 | K29: 新通河3301 | L29: 2342 | M29: 03月25日10:30
A30: 10 | B30: 高栏国码 | C30: 双水码头 | D30: 高栏国码 | E30: 80 | F30: 1006.896552
A31: 11 | B31: 高栏国码 | C31: 亚太 | D31: 高栏国码 | E31: 60 | F31: 755.1724138 | H31: 高栏国码 | I31: 双水码头 | K31: 新通河3301 | L31: 2212.082 | M31: 04月17日11:30
A32: 12 | B32: 高栏国码 | C32: 双水码头 | D32: 南沙粮食码头 | E32: 145 | F32: 1825 | H32: 高栏国码 | I32: 亚太纸厂 | K32: 新通河3301 | L32: 2000 | M32: 04月26日21:45
E33: 定额油耗： | F33: =SUM(F21:F32) -> 14096.55172 | H33: 高栏国码 | I33: 双水码头 | K33: 新通河3301 | L33: 2200 | M33: 04月22日09:30
B34: 备注:该船油耗按每小时5.8海里/73公斤计算
A36: 四.2019年4月份实际耗油和定额耗油对比总结
A37: 单位 | B37: 1月存油情况 | C37: 1月份存油情况 | D37: 实际耗油情况 | E37: 公司定额油耗 | F37: 剩出油耗
A38: 吨 | B38: =F9 -> 23373.56 | C38: =F16 -> 10661.38 | D38: =F9-F16 -> 12712.18 | E38: =F33 -> 14096.55172 | F38: =E38-D38 -> 1384.371724

Sheet Sheet1
A1: a | B1: b | C1: c
A2: 高栏国码 | B2: 亚太 | C2: 2500
A3: 高栏国码 | B3: 亚太 | C3: 2500
A4: 高栏国码 | B4: 高宝隆 | C4: 2500
A5: 高栏国码 | B5: 双水码头 | C5: 2536
A6: 高栏国码 | B6: 广裕码头 | C6: 2336
A7: 黄埔新港 | B7: 南沙粮食码头 | C7: 2600
A8: 高栏国码 | B8: 亚太 | C8: 2000
A9: 高栏国码 | B9: 双水&高宝隆 | C9: 2400
A10: 高栏国码 | B10: 双水码头 | C10: 2342
A12: 高栏国码 | B12: 双水码头 | C12: 2212.082
A13: 高栏国码 | B13: 亚太纸厂 | C13: 2000
A14: 高栏国码 | B14: 双水码头 | C14: 2200
